lending/lending_fUSD_20240208
["ID","MTS","AMOUNT","RATE_DAILY","PERIOD"]
[313444855,1707352236257,-200.0,0.00039439,2]
[313444856,1707352236267,-345.0208,0.00039498,14]
[313444857,1707352236279,-345.0208,0.00039798,14]
[313444858,1707352236289,-93.95048593,0.00039805,2]
[313444871,1707352239059,-183.36,0.000338,2]
[313444872,1707352239165,-250.0,0.00037974,2]
[313444873,1707352239175,-77.16951407,0.00039805,2]
[313444874,1707352239184,-190.81255478,0.0004,2]
[313444875,1707352239193,-1000.0,0.0004,2]
[313444876,1707352239202,-157.20958638,0.0004,30]
[313444877,1707352239212,-202.0,0.0004013,2]
[313444878,1707352239221,-181.36,0.00040162,2]
[313444879,1707352239231,-555.0208,0.00040198,14]
[313444880,1707352239241,-1000.0,0.000402,2]
[313444881,1707352239250,-686.28,0.00040234,2]
[313444882,1707352239259,-555.0208,0.00040498,14]
[313444883,1707352239269,-300.33824196,0.00040773,3]
[313444884,1707352239278,-555.0208,0.00040798,14]
[313444885,1707352239290,-750.0,0.00041,3]
[313444886,1707352239302,-202.0,0.0004114,2]
[313444887,1707352239313,-205.0,0.00041169,10]
[313444889,1707352239323,-205.0,0.00041169,10]
[313444891,1707352239334,-555.0208,0.00041198,15]
[313444893,1707352239343,-208.0,0.000414,2]
[313444895,1707352239353,-409.36,0.00041458,2]
[313444897,1707352239364,-555.0208,0.00041498,15]
[313444899,1707352239374,-555.0208,0.00041798,15]
[313444901,1707352239383,-183.36,0.000419,4]
[313444903,1707352239393,-183.36,0.000419,4]
[313444905,1707352239403,-183.36,0.000419,4]
[313444906,1707352239412,-183.36,0.000419,4]
[313444908,1707352239421,-183.36,0.000419,4]
[313444910,1707352239430,-183.36,0.000419,4]
[313444913,1707352239440,-183.36,0.000419,4]
[313444915,1707352239449,-183.36,0.000419,4]
[313444916,1707352239461,-183.36,0.000419,4]
[313444917,1707352239470,-183.36,0.000419,4]
[313444918,1707352239481,-183.36,0.000419,4]
[313444919,1707352239491,-183.36,0.000419,4]
[313444920,1707352239501,-183.36,0.000419,4]
[313444921,1707352239510,-183.36,0.000419,4]
[313444922,1707352239519,-183.36,0.000419,4]
[313444923,1707352239529,-183.36,0.000419,4]
[313444924,1707352239538,-183.36,0.000419,4]
[313444925,1707352239547,-183.36,0.000419,4]
[313444926,1707352239556,-183.36,0.000419,4]
[313444927,1707352239566,-183.36,0.000419,4]
[313444928,1707352239575,-4807.53290281,0.00042,2]
[313444944,1707352240648,-4252.18336365,0.00042,2]
[313444947,1707352244122,-5159.14673426,0.00041,30]
[313444949,1707352244132,-7347.10043388,0.00042,2]
[313444950,1707352244142,-202.0,0.0004215,2]
[313444951,1707352244151,-151.67,0.00042192,2]
[313444952,1707352244161,-555.0208,0.00042198,18]
[313444953,1707352244170,-208.0,0.0004238,2]
[313444954,1707352244179,-150.0,0.00042464,2]
[313444955,1707352244189,-555.0208,0.00042498,18]
[313444956,1707352244198,-1186.45035852,0.0004255,14]
[313444957,1707352244208,-300.33824196,0.00042642,4]
[313444958,1707352244217,-181.36,0.00042651,2]
[313444959,1707352244227,-1000.0,0.000427,2]
[313444960,1707352244236,-555.0208,0.00042798,18]
[313444961,1707352244248,-514.66049,0.000429,2]
[313444963,1707352244257,-800.0,0.00043,3]
[313444965,1707352244266,-500.0,0.00043,2]
[313444966,1707352244276,-202.0,0.0004316,2]
[313444967,1707352244285,-555.0208,0.00043198,18]
[313444968,1707352244298,-14057.22414133,0.000433,30]
[313444969,1707352244310,-3011.86184696,0.000433,30]
[313444971,1707352244321,-14823.66970646,0.000433,30]
[313445017,1707352245390,-5733.58265647,0.000433,30]
[313445018,1707352245399,-208.0,0.0004336,2]
[313445019,1707352245408,-208.0,0.0004336,2]
[313445020,1707352245417,-3145.0,0.00043435,30]
[313445021,1707352245426,-3145.0,0.00043435,60]
[313445022,1707352245435,-178.0909694,0.0004344,20]
[313445023,1707352245444,-168.72075802,0.00043449,11]
[313445024,1707352245454,-160.30037325,0.0004345,18]
[313445025,1707352245463,-153.32872216,0.0004345,19]
[313445026,1707352245472,-266.4765207,0.00043454,18]
[313445027,1707352245484,-1358.27907488,0.00043454,18]
[313445028,1707352245493,-767.94356394,0.0004349,2]
[313445029,1707352245514,-250.0,0.0004349,2]
[313445030,1707352245526,-19032.05643606,0.0004349,2]
[313445031,1707352245534,-2469.0,0.0004349,2]
[313445032,1707352245544,-555.0208,0.00043498,18]
[313445033,1707352245553,-751.04841364,0.0004353,2]
[313445034,1707352245562,-457.35543596,0.0004354,11]
[313445035,1707352245574,-11075.27955681,0.0004354,11]
[313445038,1707352245585,-33805.87308399,0.0004354,11]
[313445040,1707352245601,-63272.65680341,0.0004354,11]
[313445041,1707352245613,-14735.64352183,0.0004354,11]
[313445042,1707352245623,-54142.98636193,0.0004354,10]
[313445043,1707352245674,-1550.79274155,0.0004354,10]
[313445044,1707352245694,-404.42345137,0.0004354,10]
[313445045,1707352245705,-891.375,0.0004354,10]
[313445046,1707352245716,-5760.51,0.0004354,10]
[313445047,1707352245728,-345.03510861,0.0004354,10]
[313445048,1707352245740,-8199.38884502,0.0004354,10]
[313445049,1707352245796,-786.5464571,0.0004354,10]
[313445050,1707352245807,-349.19474161,0.0004354,10]
[313445051,1707352245853,-2784.62864991,0.0004354,10]
[313445052,1707352245862,-500.0,0.00043548,2]
[313445053,1707352245871,-500.0,0.00043549,2]
[313445054,1707352245880,-3139.87090785,0.00043549,2]
[313445055,1707352245892,-549.79324979,0.00043549,2]
[313445056,1707352245903,-742.5,0.00043549,2]
[313445057,1707352245915,-12550.00132184,0.00043549,2]
[313445059,1707352245927,-22245.4809424,0.00043549,2]
[313445061,1707352245939,-676.6056036,0.00043549,2]
[313445065,1707352246113,-80887.45655946,0.00043549,2]
[313445066,1707352246125,-485.305,0.00043549,2]
[313445067,1707352246136,-1555.91707367,0.00043549,2]
[313445068,1707352246159,-4783.56625343,0.00043549,2]
[313445069,1707352246171,-17731.87148542,0.00043549,2]
[313445070,1707352246180,-39685.60482665,0.00043549,2]
[313445071,1707352246366,-1596.9,0.00043549,2]
[313445072,1707352246379,-1471.99970644,0.00043549,2]
[313445073,1707352246408,-281.37,0.00042263,2]
[313445074,1707352246417,-126530.89682921,0.00043549,2]
[313445075,1707352246426,-330.82725392,0.00043549,30]
[313445076,1707352246435,-437783.53001847,0.00043549,2]
[313445077,1707352246444,-641.168051,0.00043549,120]
[313445078,1707352246453,-1000.0,0.00043549,30]
[313445079,1707352246462,-500.0,0.00043549,120]
[313445080,1707352246471,-154.77779,0.00043549,30]
[313445081,1707352246480,-1000.0,0.00043549,30]
[313445082,1707352246489,-1000.0,0.00043549,30]
[313445083,1707352246497,-1000.0,0.00043549,30]
[313445084,1707352246506,-1000.0,0.00043549,30]
[313445085,1707352246515,-1000.0,0.00043549,30]
[313445086,1707352246524,-1000.0,0.00043549,30]
[313445087,1707352246533,-1000.0,0.00043549,30]
[313445088,1707352246542,-1964.895122,0.00043549,30]
[313445089,1707352246552,-1000.0,0.00043549,30]
[313445090,1707352246561,-970.0,0.00043549,30]
[313445091,1707352246570,-183.687984,0.0004355,14]
[313445092,1707352246580,-255.717792,0.0004355,14]
[313445093,1707352246590,-255.717792,0.0004355,14]
[313445094,1707352246599,-495.173539,0.0004355,14]
[313445095,1707352246608,-495.173539,0.0004355,14]
[313445096,1707352246617,-166.304937,0.00043562,14]
[313445097,1707352246626,-185.0,0.000436,7]
[313445098,1707352246635,-2828.0,0.00043613,2]
[313445099,1707352246645,-400.0,0.000437,15]
[313445100,1707352246654,-409.36,0.00043722,2]
[313445101,1707352246663,-555.0208,0.00043798,18]
[313445102,1707352246672,-800.0,0.000438,15]
[313445103,1707352246682,-744.28,0.00043836,15]
[313445104,1707352246690,-970.0,0.000439,49]
[313445105,1707352246700,-1200.0,0.000439,16]
[313445106,1707352246710,-250.0,0.00044,2]
[313445107,1707352246720,-150.0,0.00044,2]
[313445108,1707352246729,-1624.75559555,0.0004404,19]
[313445109,1707352246738,-202.0,0.0004417,30]
[313445110,1707352246748,-555.0208,0.00044198,20]
[313445111,1707352246757,-1000.0,0.0004422,2]
[313445112,1707352246766,-253.62615809,0.00044274,2]
[313445113,1707352246776,-208.0,0.0004434,30]
[313445114,1707352246786,-208.0,0.0004434,30]
[313445115,1707352246795,-166.304937,0.00044384,14]
[313445116,1707352246805,-1914.0,0.0004439,2]
[313445117,1707352246815,-236.07769181,0.000444,10]
[313445118,1707352246824,-185.0,0.000444,7]
[313445119,1707352246834,-1000.0,0.00044486,30]
[313445120,1707352246844,-1036.777,0.00044492,2]
[313445121,1707352246854,-7419.339,0.00044492,2]
[313445122,1707352246863,-388.0,0.00044492,2]
[313445123,1707352246872,-28229.0,0.00044492,2]
[313445124,1707352246881,-363.264,0.00044492,2]
[313445125,1707352246889,-2474.0,0.00044492,2]
[313445126,1707352246899,-19792.0,0.00044492,2]
[313445127,1707352246907,-4197.0,0.00044492,2]
[313445128,1707352246916,-3033.118,0.00044492,2]
[313445129,1707352246926,-1250.0,0.00044492,2]
[313445130,1707352246935,-555.0208,0.00044498,20]
[313445131,1707352246945,-151.58590344,0.000445,11]
[313445132,1707352246954,-300.33824196,0.0004451,6]
[313445133,1707352246964,-150.0,0.00044548,2]
[313445134,1707352246973,-1624.75559555,0.00044626,19]
[313445135,1707352246982,-500.0,0.00044738,30]
[313445136,1707352246992,-384.14815312,0.0004475,30]
[313445137,1707352247001,-189.0,0.0004479,2]
[313445138,1707352247012,-5587.0,0.0004479,3]
[313445139,1707352247021,-606.0,0.0004479,3]
[313445140,1707352247030,-257.0207392,0.000448,2]
[313445141,1707352247040,-848.89048532,0.000448,2]
[313445142,1707352247049,-606.61686951,0.000448,2]
[313445143,1707352247058,-2299.70786343,0.000448,2]
[313445144,1707352247067,-153.32872213,0.00044822,25]
[313445145,1707352247075,-75214.8813571,0.0004488,10]
[313445146,1707352247084,-751.04841364,0.0004489,2]
[313445147,1707352247094,-75214.8813571,0.0004489,10]
[313445148,1707352247103,-150.0,0.00044899,4]
[313445149,1707352247114,-150.0,0.00044899,4]
[313445150,1707352247123,-1000.0,0.000449,51]
[313445151,1707352247131,-157.64196966,0.000449,2]
[313445152,1707352247141,-144073.09628744,0.000449,30]
[313445153,1707352247150,-1600.0,0.000449,16]
[313445154,1707352247159,-255.717792,0.000449,14]
[313445155,1707352247169,-255.717792,0.000449,14]
[313445156,1707352247178,-495.173539,0.000449,14]
[313445157,1707352247187,-495.173539,0.000449,14]
[313445158,1707352247197,-205.0,0.00044935,13]
[313445159,1707352247206,-578641.23789147,0.00044968,3]
[313445160,1707352247215,-300859.525428,0.00044969,10]
[313445161,1707352247225,-75214.8813571,0.00044969,10]
[313445162,1707352247234,-2847.75943259,0.00044979,2]
[313445163,1707352247244,-255.717792,0.00044979,14]
[313445164,1707352247253,-255.717792,0.00044979,14]
[313445165,1707352247263,-495.173539,0.00044979,14]
[313445166,1707352247272,-495.173539,0.00044979,14]
[313445167,1707352247282,-4854.0,0.00044986,7]
[313445168,1707352247292,-166.16006898,0.00044989,2]
[313445169,1707352247302,-515.6072716,0.00044989,2]
[313445170,1707352247311,-255.717792,0.0004499,14]
[313445171,1707352247320,-255.717792,0.0004499,14]
[313445172,1707352247331,-495.173539,0.0004499,14]
[313445173,1707352247341,-495.173539,0.0004499,14]
[313445174,1707352247352,-32785.62678295,0.00045,4]
[313445175,1707352247361,-850.0,0.00045,3]
[313445176,1707352247372,-155.0,0.00045,7]
[313445177,1707352247382,-16596.48836932,0.00045,10]
[313445178,1707352247391,-947.64131745,0.00045,30]
[313445179,1707352247401,-733.61484394,0.00045,30]
[313445180,1707352247410,-150.0,0.00045096,2]
[313445181,1707352247419,-416.32,0.00045125,2]
[313445182,1707352247428,-202.0,0.0004517,30]
[313445183,1707352247437,-165.89824594,0.00045196,30]
[313445184,1707352247448,-150.0,0.00045196,30]
[313445185,1707352247457,-555.0208,0.00045198,22]
[313445186,1707352247468,-185.0,0.000452,7]
[313445187,1707352247477,-166.304937,0.00045205,14]
[313445188,1707352247485,-1624.75559555,0.00045212,20]
[313445189,1707352247494,-500.0,0.00045225,30]
[313445190,1707352247503,-500.0,0.00045225,30]
[313445191,1707352247513,-500.0,0.00045225,30]
[313445192,1707352247522,-500.0,0.00045225,30]
[313445193,1707352247531,-500.0,0.00045225,30]
[313445194,1707352247540,-500.0,0.00045225,30]
[313445195,1707352247550,-500.0,0.00045225,30]
[313445196,1707352247559,-500.0,0.00045225,30]
[313445197,1707352247568,-500.0,0.00045225,30]
[313445198,1707352247577,-500.0,0.00045225,30]
[313445199,1707352247586,-500.0,0.00045225,30]
[313445200,1707352247597,-500.0,0.00045225,30]
[313445201,1707352247607,-500.0,0.00045225,30]
[313445202,1707352247616,-500.0,0.00045225,30]
[313445203,1707352247626,-500.0,0.00045225,30]
[313445204,1707352247636,-500.0,0.00045225,30]
[313445205,1707352247644,-500.0,0.00045225,30]
[313445206,1707352247654,-500.0,0.00045225,30]
[313445207,1707352247663,-500.0,0.00045225,30]
[313445208,1707352247672,-514.41243705,0.00045225,30]
[313445209,1707352247681,-500.0,0.00045286,30]
[313445210,1707352247689,-208.0,0.0004532,30]
[313445211,1707352247699,-208.0,0.0004532,30]
[313445212,1707352247710,-156.85954294,0.00045461,4]
[313445213,1707352247721,-1813.3582863,0.00045461,4]
[313445214,1707352247731,-555.0208,0.00045498,22]
[313445215,1707352247741,-1000.0,0.000455,2]
[313445216,1707352247881,-555.0208,0.00045798,22]
[313445217,1707352247892,-1624.75559555,0.00045798,21]
[313445218,1707352247901,-500.0,0.00045834,30]
[313445219,1707352247911,-1000.0,0.000459,53]
[313445220,1707352247920,-200.0,0.000459,30]
[313445221,1707352247929,-183.36,0.000459,5]
[313445222,1707352247938,-183.36,0.000459,5]
[313445223,1707352247947,-183.36,0.000459,5]
[313445224,1707352247957,-183.36,0.000459,5]
[313445225,1707352247966,-183.36,0.000459,5]
[313445226,1707352247974,-183.36,0.000459,5]
[313445227,1707352247983,-183.36,0.000459,5]
[313445228,1707352247993,-183.36,0.000459,5]
[313445229,1707352248001,-183.36,0.000459,5]
[313445230,1707352248011,-183.36,0.000459,5]
[313445231,1707352248020,-183.36,0.000459,5]
[313445232,1707352248029,-183.36,0.000459,5]
[313445233,1707352248038,-183.36,0.000459,5]
[313445234,1707352248048,-183.36,0.000459,5]
[313445235,1707352248057,-183.36,0.000459,5]
[313445236,1707352248066,-183.36,0.000459,5]
[313445237,1707352248075,-183.36,0.000459,5]
[313445238,1707352248084,-183.36,0.000459,5]
[313445239,1707352248093,-183.36,0.000459,5]
[313445240,1707352248102,-183.36,0.000459,5]
[313445241,1707352248111,-409.36,0.00045986,2]
[313445242,1707352248120,-200.0,0.00045993,10]
[313445243,1707352248129,-185.0,0.00046,30]
[313445244,1707352248139,-151.67,0.00046027,2]
[313445245,1707352248148,-166.304937,0.00046027,14]
[313445246,1707352248158,-202.0,0.0004618,30]
[313445247,1707352248167,-153.32872213,0.00046193,30]
[313445248,1707352248176,-555.0208,0.00046198,25]
[313445249,1707352248186,-208.0,0.000463,30]
[313445250,1707352248195,-208.0,0.000463,30]
[313445251,1707352248204,-604.37844804,0.00046332,2]
[313445252,1707352248214,-832.36141526,0.00046358,5]
[313445253,1707352248223,-300.33824196,0.00046379,8]
[313445254,1707352248232,-500.0,0.00046382,30]
[313445255,1707352248241,-1624.75559555,0.00046384,22]
[313445256,1707352248250,-555.0208,0.00046498,25]
[313445257,1707352248260,-600.0,0.00046575,61]
[313445258,1707352248269,-500.0,0.00046575,3]
[313445259,1707352248279,-500.0,0.00046575,30]
[313445260,1707352248292,-555.0208,0.00046798,25]
[313445261,1707352248301,-185.0,0.000468,30]
[313445262,1707352248310,-600.0,0.00046849,61]
[313445263,1707352248319,-166.304937,0.00046849,14]
[313445264,1707352248329,-576.48,0.00046849,120]
[313445265,1707352248339,-150.0,0.0004687,30]
[313445266,1707352248348,-1000.0,0.000469,55]
[313445267,1707352248358,-4431.62488397,0.000469,30]
[313445268,1707352248368,-500.0,0.0004693,30]
[313445269,1707352248378,-1624.75559555,0.0004697,22]
[313445270,1707352248387,-900.0,0.00047,3]
[313445271,1707352248396,-5000.0,0.00047,30]
[313445272,1707352248405,-928.06816048,0.00047,48]
[313445273,1707352248414,-600.0,0.00047123,61]
[313445274,1707352248423,-500.0,0.00047123,35]
[313445275,1707352248432,-150.0,0.0004718,2]
[313445276,1707352248441,-202.0,0.0004719,30]
[313445277,1707352248450,-188.0,0.0004719,2]
[313445278,1707352248459,-555.0208,0.00047198,26]
[313445279,1707352248468,-208.0,0.0004728,30]
[313445280,1707352248478,-208.0,0.0004728,30]
[313445281,1707352248487,-257.02073919,0.00047282,2]
[313445282,1707352248496,-848.89048532,0.00047282,2]
[313445283,1707352248505,-606.61686949,0.00047282,2]
[313445284,1707352248514,-600.0,0.00047397,61]
[313445285,1707352248523,-1500.0,0.00047455,7]
[313445286,1707352248532,-500.0,0.00047478,30]
[313445287,1707352248541,-246.54838656,0.0004749,2]
[313445288,1707352248551,-555.0208,0.00047498,26]
[313445289,1707352248560,-1624.75559555,0.00047556,23]
[313445290,1707352248569,-153.32872213,0.00047565,35]
[313445291,1707352248579,-744.28,0.00047572,15]
[313445292,1707352248588,-338.22,0.000476,2]
[313445293,1707352248597,-600.0,0.00047671,61]
[313445294,1707352248607,-500.0,0.00047671,40]
[313445295,1707352248616,-166.304937,0.00047671,14]
[313445296,1707352248627,-185.0,0.000477,30]
[313445297,1707352248636,-500.0,0.00047738,30]
[313445298,1707352248646,-500.0,0.00047738,30]
[313445299,1707352248656,-500.0,0.00047738,30]
[313445300,1707352248666,-634.45940686,0.00047738,30]
[313445301,1707352248675,-555.0208,0.00047798,26]
[313445302,1707352248684,-200.0,0.00047844,7]
[313445303,1707352248694,-3223.02009537,0.00047853,4]
[313445304,1707352248702,-1656.48766009,0.00047853,15]
[313445305,1707352248711,-162.10429849,0.00047854,4]
[313445306,1707352248720,-2143.62450616,0.00047854,4]
[313445307,1707352248730,-232.48962599,0.00047854,4]
[313445308,1707352248739,-270.84639382,0.00047854,4]
[313445309,1707352248748,-256.34221935,0.00047854,4]
[313445310,1707352248757,-909.10790134,0.00047854,4]
[313445311,1707352248766,-156.05976739,0.00047854,4]
[313445312,1707352248775,-8876.15774637,0.00047854,4]
[313445313,1707352248784,-190.33482218,0.00047854,4]
[313445314,1707352248793,-2825.12490961,0.00047854,4]
[313445315,1707352248802,-19104.02955451,0.00047854,4]
[313445316,1707352248812,-157.52741572,0.00047854,4]
[313445317,1707352248821,-241.8427388,0.00047854,4]
[313445318,1707352248831,-257.4045138,0.00047854,4]
[313445319,1707352248840,-817.55928585,0.00047854,4]
[313445320,1707352248851,-164.99591023,0.00047854,4]
[313445321,1707352248860,-158.67882098,0.00047854,4]
[313445322,1707352248869,-13128.77097313,0.00047854,4]
[313445323,1707352248878,-7151.16855205,0.00047854,4]
[313445324,1707352248887,-155.0,0.00047855,2]
[313445325,1707352248896,-172.54144566,0.00047855,4]
[313445326,1707352248905,-1254.22559833,0.00047855,4]
[313445327,1707352248913,-180.8638023,0.00047855,2]
[313445328,1707352248923,-544.90427787,0.00047855,4]
[313445329,1707352248931,-155.24461793,0.00047855,4]
[313445330,1707352248940,-1206.07880457,0.00047855,4]
[313445331,1707352248950,-375.18085056,0.00047855,4]
[313445332,1707352248959,-249.72606267,0.00047855,4]
[313445333,1707352248968,-364.82931243,0.00047855,4]
[313445334,1707352248977,-14110.28102677,0.00047858,4]
[313445335,1707352248986,-255.717792,0.00047858,14]
[313445336,1707352248995,-255.717792,0.00047858,14]
[313445337,1707352249004,-495.173539,0.00047858,14]
[313445338,1707352249014,-495.173539,0.00047858,14]
[313445339,1707352249023,-222.82410468,0.000479,60]
[313445340,1707352249032,-1000.0,0.000479,57]
[313445341,1707352249041,-253.59,0.000479,7]
[313445342,1707352249049,-514.6605,0.000479,2]
[313445343,1707352249059,-751.04841364,0.00047935,2]
[313445344,1707352249067,-832.36141526,0.00047937,5]
[313445345,1707352249076,-600.0,0.00047945,61]
[313445346,1707352249086,-500.0,0.00047945,3]
[313445347,1707352249095,-1847.03,0.00047945,120]
[313445348,1707352249106,-1847.03,0.00047945,120]
[313445349,1707352249116,-1847.03,0.00047945,120]
[313445350,1707352249125,-1847.03,0.00047945,120]
[313445351,1707352249134,-1847.03,0.00047945,120]
[313445352,1707352249144,-1847.03,0.00047945,120]
[313445353,1707352249154,-1847.03,0.00047945,120]
[313445354,1707352249163,-1847.03,0.00047945,120]
[313445355,1707352249173,-1847.03,0.00047945,120]
[313445356,1707352249182,-1847.03,0.00047945,120]
[313445357,1707352249191,-1847.03,0.00047945,120]
[313445358,1707352249200,-1847.03,0.00047945,120]
[313445359,1707352249209,-500.0,0.00047945,30]
[313445360,1707352249219,-594.33,0.00047945,2]
[313445361,1707352249229,-21093.988,0.00047998,20]
[313445362,1707352249238,-150.0,0.00048,10]
[313445363,1707352249248,-917.63758217,0.00048,30]
[313445364,1707352249258,-1127.80661104,0.00048,14]
[313445365,1707352249268,-801.86898587,0.00048,4]
[313445366,1707352249279,-8765.12684343,0.00048,4]
[313445367,1707352249289,-300.0,0.00048,49]
[313445368,1707352249301,-500.0,0.00048026,30]
[313445369,1707352249311,-1500.0,0.00048088,7]
[313445370,1707352249320,-433.59220125,0.000481,30]
[313445371,1707352249329,-150.0,0.0004812,2]
[313445372,1707352249340,-150.0,0.00048131,7]
[313445373,1707352249349,-1624.75559555,0.00048142,24]
[313445374,1707352249361,-555.0208,0.00048198,28]
[313445375,1707352249373,-202.0,0.000482,30]
[313445376,1707352249384,-1000.0,0.000482,2]
[313445377,1707352249393,-600.0,0.00048219,61]
[313445378,1707352249403,-500.0,0.00048219,45]
[313445379,1707352249412,-1000.0,0.0004824,2]
[313445380,1707352249422,-962.14280511,0.0004824,4]
[313445381,1707352249431,-300.33824196,0.00048247,9]
[313445382,1707352249441,-409.36,0.0004825,2]
[313445383,1707352249450,-208.0,0.0004826,30]
[313445384,1707352249459,-208.0,0.0004826,30]
[313445385,1707352249469,-253.59,0.000483,7]
[313445386,1707352249478,-150.0,0.00048321,7]
[313445387,1707352249487,-150.0,0.00048379,7]
[313445388,1707352249497,-150.0,0.00048389,7]
[313445389,1707352249506,-600.0,0.00048493,61]
[313445390,1707352249515,-166.304937,0.00048493,14]
[313445391,1707352249524,-555.0208,0.00048498,28]
[313445392,1707352249534,-2838.0,0.000485,60]
[313445393,1707352249543,-1400.0,0.000485,30]
[313445394,1707352249553,-161.09185122,0.000485,120]
[313445395,1707352249562,-185.0,0.000485,30]
[313445396,1707352249572,-150.0,0.0004852,7]
[313445397,1707352249581,-150.0,0.00048544,30]
[313445398,1707352249591,-150.0,0.00048572,7]
[313445399,1707352249600,-500.0,0.00048574,30]
[313445400,1707352249611,-286.0,0.000486,30]
[313445401,1707352249621,-150.0,0.000486,19]
[313445402,1707352249630,-150.0,0.00048651,7]
[313445403,1707352249639,-1000.0,0.0004869,4]
[313445404,1707352249649,-253.59,0.000487,7]
[313445405,1707352249658,-1256.0,0.000487,117]
[313445406,1707352249668,-205.0,0.00048701,25]
[313445407,1707352249677,-1624.75559555,0.00048728,24]
[313445408,1707352249686,-150.0,0.00048733,7]
[313445409,1707352249695,-150.0,0.00048756,7]
[313445410,1707352249704,-600.0,0.00048767,61]
[313445411,1707352249714,-500.0,0.00048767,50]
[313445412,1707352249723,-150.39,0.00048767,2]
[313445413,1707352249732,-555.0208,0.00048798,28]
[313445414,1707352249741,-2100.0,0.000488,17]
[313445415,1707352249750,-150.0,0.000488,20]
[313445416,1707352249760,-150.0,0.00048817,7]
[313445417,1707352249769,-239.25973513,0.00048842,7]
[313445418,1707352249778,-1000.0,0.000489,59]
[313445419,1707352249788,-233.16932759,0.000489,30]
[313445420,1707352249797,-400.0,0.000489,17]
[313445421,1707352249806,-150.0,0.00048903,7]
[313445422,1707352249815,-150.0,0.00048907,7]
[313445423,1707352249825,-150.0,0.0004892,7]
[313445424,1707352249834,-153.32872213,0.00048937,40]
[313445425,1707352249843,-215.87565893,0.00048942,30]
[313445426,1707352249853,-205.668,0.0004895,120]
[313445427,1707352249862,-205.668,0.0004895,120]
[313445428,1707352249872,-215.87565893,0.00048952,30]
[313445429,1707352249881,-215.87565893,0.00048953,30]
[313445430,1707352249890,-150.0,0.00048953,7]
[313445431,1707352249899,-150.0,0.0004896,7]
[313445432,1707352249909,-150.0,0.00048972,7]
[313445433,1707352249918,-150.0,0.00048991,7]
[313445434,1707352249927,-150.0,0.00048992,7]
[313445435,1707352249936,-150.0,0.00048992,7]
[313445436,1707352249945,-8681.55678485,0.00048997,10]
[313445437,1707352249954,-215.87565893,0.00048999,30]
[313445438,1707352249965,-215.87565893,0.00049,30]
[313445439,1707352249975,-768065.0,0.00049,30]
[313445440,1707352249984,-300.0,0.00049,30]
[313445441,1707352249993,-150.0,0.00049,10]
[313445442,1707352250002,-1295.0,0.00049,2]
[313445443,1707352250012,-238.4467722,0.00049,16]
[313445444,1707352250021,-950.0,0.00049,3]
[313445445,1707352250030,-1141.95252377,0.00049,90]
[313445446,1707352250039,-28102.0,0.00049,30]
[313445447,1707352250049,-150.0,0.00049,55]
[313445448,1707352250059,-11937.82396301,0.00049,5]
[313445449,1707352250068,-150.0,0.00049,7]
[313445450,1707352250077,-1172341.0,0.00049,30]
[313445451,1707352250087,-150.0,0.00049,20]
[313445452,1707352250096,-151.88193308,0.00049004,2]
[313445453,1707352250106,-150.0,0.00049008,7]
[313445454,1707352250115,-150.0,0.0004903,7]